bitfinex/quotes_ETHUSD_20241207
["timestamp","ask_amount","ask_price","bid_price","bid_amount"]
[1733566470335,1.0464319,3987.0,3986.8,0.07839051]
[1733566470673,0.86555739,3986.9,3986.7,1.75583]
[1733566470887,1.0464319,3987.0,3986.8,0.07838228]
[1733566471173,2.19536224,3986.9,3986.2,1.08814413]
[1733566471371,2.19536224,3986.9,3986.4,1.75595]
[1733566471372,0.03135414,3986.9,3986.4,1.75595]
[1733566471573,0.86549186,3986.8,3986.5,0.0783835]
[1733566471738,0.03135414,3986.9,3986.6,0.0783835]
[1733566471939,0.37473007,3986.9,3986.7,0.0783835]
[1733566472139,0.37473007,3986.9,3985.9,1.75616]
[1733566472140,0.86547488,3986.8,3986.2,1.75605]
[1733566472379,1.38980783,3986.9,3986.3,0.07838453]
[1733566472548,0.86544378,3986.8,3986.4,0.07838459]
[1733566472738,1.38980783,3986.9,3986.5,0.07838459]
[1733566472938,1.24001804,3986.8,3986.6,0.07838459]
[1733566473172,0.37457811,3986.8,3986.7,0.07838459]
[1733566473381,0.86535215,3986.8,3986.7,0.07838459]
[1733566473851,1.0464319,3987.0,3986.7,0.07838459]
[1733566474058,2.16363777,3986.9,3986.8,0.07838459]
[1733566474244,0.86545511,3986.9,3986.8,0.07838459]
[1733566474573,0.92812565,3986.9,3986.8,0.07838459]
[1733566475279,2.2262242,3986.9,3986.8,0.07838459]
[1733566475483,0.928092,3986.9,3986.8,0.07838459]
[1733566477775,2.66228212,3986.9,3986.8,0.07838459]
[1733566478289,1.36427713,3986.9,3986.8,0.07838459]
[1733566479256,1.39563284,3986.9,3986.8,0.07838459]
[1733566479457,1.36427713,3986.9,3986.8,0.07838454]
[1733566479846,3.47423414,3986.9,3986.8,0.07838454]
[1733566480178,3.47405105,3986.9,3986.8,0.07838454]
[1733566480375,2.17619382,3986.9,3986.8,0.07838454]
[1733566480969,3.47400327,3986.9,3986.8,0.07838454]
[1733566482691,4.02400327,3986.9,3986.8,0.07838454]
[1733566484558,2.30582,3986.8,3985.7,1.08814413]
[1733566484759,0.8121,3986.6,3985.8,0.07839346]
[1733566485073,3.26860379,3986.5,3985.9,0.07839346]
[1733566485380,3.26860379,3986.5,3985.6,1.75628]
[1733566485381,0.86482763,3986.4,3986.0,0.07839346]
[1733566485582,1.85803694,3986.6,3986.1,0.07839346]
[1733566485780,1.54950273,3986.5,3986.2,0.07839346]
[1733566486016,0.68466015,3986.5,3986.3,0.07839346]
[1733566486202,0.68466015,3986.5,3986.4,0.07839346]
[1733566486357,1.54953438,3986.5,3985.6,1.75628]
[1733566486657,0.68466015,3986.5,3985.7,0.07839428]
[1733566486853,0.68466015,3986.5,3985.8,0.07839428]
[1733566487058,0.68466015,3986.5,3985.9,0.07839428]
[1733566487296,0.86487043,3986.4,3986.0,0.07839428]
[1733566487493,0.68466015,3986.5,3986.1,0.07839428]
[1733566487795,0.06059777,3986.3,3986.2,0.07839428]
[1733566487978,0.62406238,3986.5,3986.2,0.07839428]
[1733566488178,0.06059777,3986.3,3985.6,1.75628]
[1733566488387,3.61391694,3986.6,3985.7,0.0783941]
[1733566488700,0.06059777,3986.2,3985.8,0.0783941]
[1733566488901,0.06059777,3986.2,3985.4,1.224756]
[1733566488902,1.78729043,3986.5,3985.9,0.0783941]
[1733566489200,1.33825082,3986.4,3986.0,0.0783941]
[1733566489361,0.03136041,3986.3,3986.1,0.0783941]
[1733566489563,0.03136041,3986.3,3986.2,0.0783941]
[1733566489829,0.95691606,3986.3,3986.2,0.0783941]
[1733566490029,0.95691606,3986.3,3986.2,0.07839634]
[1733566490232,1.4615462,3986.3,3986.2,0.07839634]
[1733566490447,4.04387277,3986.3,3986.2,0.07839634]
[1733566490636,5.37287451,3986.3,3986.2,0.07839634]
[1733566490806,6.91118453,3986.3,3986.2,0.07839634]
[1733566491022,6.91118453,3986.3,3985.0,1.75658]
[1733566491023,2.5682,3986.1,3985.0,1.75658]
[1733566491225,2.16280346,3986.0,3985.0,1.75658]
[1733566491528,0.89654427,3985.9,3985.0,1.75658]
[1733566491753,0.06045266,3985.8,3985.1,0.07840721]
[1733566492052,0.06045266,3985.8,3985.2,0.07840721]
[1733566492216,0.06045266,3985.8,3985.3,0.07840721]
[1733566492420,1.29778931,3986.0,3985.4,0.07840721]
[1733566492759,0.86521072,3985.9,3985.5,0.07840721]
[1733566493058,0.06045266,3985.9,3985.6,0.07840721]
[1733566493263,0.06045266,3985.9,3985.7,0.07840721]
[1733566493571,1.29778351,3986.0,3985.8,0.07840721]
[1733566493861,0.70632758,3986.0,3985.9,0.07840721]
[1733566494161,2.86934424,3986.0,3985.9,0.07840721]
[1733566494459,4.65684769,3986.0,3985.9,0.07840721]
[1733566494660,4.62548424,3986.0,3985.9,0.07840721]
[1733566495028,4.65684769,3986.0,3985.9,0.07840721]
[1733566495267,4.62548424,3986.0,3985.9,0.07840721]
[1733566495428,4.65684768,3986.0,3985.9,0.07840721]
[1733566496053,4.62548424,3986.0,3985.9,0.07840721]
[1733566496561,4.6568477,3986.0,3985.9,0.07840721]
[1733566496873,4.62548424,3986.0,3985.9,0.07840721]
[1733566497852,4.62539981,3986.0,3985.9,0.07840721]
[1733566499781,4.65676329,3986.0,3985.9,0.07840721]
[1733566500070,4.62539981,3986.0,3985.9,0.07840721]
[1733566500265,2.86945463,3986.0,3985.9,0.07840721]
[1733566500564,2.86945463,3986.0,3985.9,0.07840739]
[1733566502840,2.86945463,3986.0,3985.9,0.07840706]
[1733566504572,2.95918287,3986.0,3985.9,0.07840706]
[1733566506110,4.00543836,3986.0,3985.9,0.07840706]
[1733566508378,5.26532287,3986.0,3985.9,0.07840706]
[1733566508585,2.30624,3985.8,3984.7,1.75667]
[1733566508903,3.61238817,3985.6,3984.8,0.07841352]
[1733566509102,2.19440084,3985.5,3984.9,0.07841352]
[1733566509279,0.86521362,3985.4,3985.0,0.07841352]
[1733566509476,0.03136679,3985.3,3985.1,0.07841682]
[1733566509676,0.05641749,3985.5,3985.1,0.07841682]
[1733566509677,1.07772497,3985.5,3985.1,0.07841682]
[1733566509951,0.05641749,3985.2,3984.5,1.7568]
[1733566510098,1.07772497,3985.5,3984.6,0.07841753]
[1733566510300,2.21878581,3985.4,3984.7,0.07841753]
[1733566510531,0.89631445,3985.3,3984.8,0.07841753]
[1733566510803,0.89631445,3985.3,3984.5,2.04129441]
[1733566510804,0.03136712,3985.3,3984.9,0.07841753]
[1733566511003,0.05641749,3985.2,3985.0,0.07841753]
[1733566511305,1.84742099,3985.4,3985.1,0.07841753]
[1733566511498,1.84742099,3985.4,3985.2,0.07841753]
[1733566511499,3.71702884,3985.3,3985.2,0.07841753]
[1733566512602,4.52672884,3985.3,3985.2,0.07841753]
[1733566512802,4.52672884,3985.3,3984.3,1.08814413]
[1733566513040,0.55,3985.2,3984.4,0.07842227]
[1733566513245,0.55,3985.2,3984.5,0.07842227]
[1733566513408,0.55,3985.2,3983.4,1.0517671]
[1733566513409,0.8097,3985.0,3984.6,0.07842227]
[1733566513602,0.03137143,3984.9,3984.7,0.07842227]
[1733566513807,0.03137143,3984.9,3983.7,1.08814413]
[1733566513808,0.03137143,3984.9,3984.8,0.07842227]
[1733566516358,2.68579556,3985.0,3984.8,0.07842938]
[1733566516653,2.68579556,3985.0,3984.0,0.7701]
[1733566516803,2.68579556,3985.0,3984.1,0.07842984]
[1733566517000,2.68579556,3985.0,3984.2,0.07842984]
[1733566517246,3.48462138,3985.0,3984.3,0.07842984]
[1733566517599,3.48462138,3985.0,3984.4,0.07842984]
[1733566517844,1.08814413,3984.8,3984.5,0.07842984]
[1733566518144,2.84482413,3984.8,3983.7,0.7701]
[1733566518309,2.84482413,3984.8,3983.8,0.07843316]
[1733566518508,2.84482413,3984.8,3983.9,0.07843316]
[1733566518842,2.84482413,3984.8,3984.0,0.07843329]
[1733566519015,2.84482413,3984.8,3984.1,0.07843329]
[1733566519352,2.84482413,3984.8,3983.8,0.36101242]
[1733566519353,2.84482413,3984.8,3984.2,0.07843329]
[1733566519501,0.84770926,3984.7,3984.3,0.07843329]
[1733566519703,2.60443926,3984.7,3984.3,0.07843329]
[1733566519939,0.55,3984.6,3983.7,0.7701]
[1733566520284,1.69375712,3984.6,3983.8,0.07843754]
[1733566520585,1.69375712,3984.6,3983.7,0.7701]
[1733566520586,1.69375712,3984.6,3983.9,0.07843754]
[1733566520741,1.69375712,3984.6,3984.0,0.07843754]
[1733566521087,1.69375712,3984.6,3983.7,0.7701]
[1733566521253,1.69375712,3984.6,3983.8,0.07843718]
[1733566521581,1.69375712,3984.6,3983.9,0.07843718]
[1733566521786,1.69375712,3984.6,3984.0,0.07843718]
[1733566522090,1.69375712,3984.6,3984.1,0.07843718]
[1733566522249,1.69375712,3984.6,3984.2,0.07843718]
[1733566522590,1.69375712,3984.6,3983.7,0.7701]
[1733566522745,1.69375712,3984.6,3983.8,1.8355479]
[1733566522746,0.60561299,3984.6,3983.8,1.8355479]
[1733566522945,0.60561299,3984.6,3983.9,0.0784379]
[1733566523181,0.60561299,3984.6,3984.0,0.07843779]
[1733566523381,0.60561299,3984.6,3984.1,0.07843779]
[1733566523874,0.60561299,3984.6,3984.2,0.07843779]
[1733566524082,0.60561299,3984.6,3983.8,1.75711]
[1733566524237,0.60561299,3984.6,3983.9,0.0784376]
[1733566524440,0.60561299,3984.6,3984.0,0.0784376]
[1733566524677,0.60561299,3984.6,3984.1,0.0784376]
[1733566524871,0.60561299,3984.6,3984.2,0.0784376]
[1733566525089,0.60561299,3984.6,3983.8,1.75711]
[1733566525387,0.60561299,3984.6,3983.9,0.07843754]
[1733566525552,0.60561299,3984.6,3984.0,0.07843754]
[1733566525893,0.60561299,3984.6,3984.1,0.07843754]
[1733566526183,0.60561299,3984.6,3983.8,1.75711]
[1733566526493,0.60561299,3984.6,3983.9,0.07843732]
[1733566526853,0.60561299,3984.6,3984.0,0.07843741]
[1733566527197,0.60561299,3984.6,3984.1,0.07843741]
[1733566527406,0.60561299,3984.6,3983.8,1.75711]
[1733566527632,0.60561299,3984.6,3983.9,0.07843754]
[1733566527774,0.60561299,3984.6,3983.9,1.83548754]
[1733566527978,0.60561299,3984.6,3984.0,0.07843754]
[1733566528189,0.60561299,3984.6,3984.1,0.07843754]
[1733566528376,0.60561299,3984.6,3984.2,0.07843754]
[1733566528574,0.60561299,3984.6,3983.9,1.75705]
[1733566528819,0.60561299,3984.6,3984.0,0.07843729]
[1733566528974,0.60561299,3984.6,3984.1,0.07843729]
[1733566529183,0.60561299,3984.6,3983.9,1.75705]
[1733566529184,0.60561299,3984.6,3984.2,0.07843729]
[1733566529397,0.60561299,3984.6,3983.9,1.75705]
[1733566529695,0.60561299,3984.6,3984.0,0.07843785]
[1733566529877,0.05561299,3984.6,3984.1,0.078438]
[1733566530081,1.08814413,3984.5,3984.1,0.078438]
[1733566530417,0.05375922,3984.5,3984.2,0.078438]
[1733566530640,0.05375922,3984.5,3983.9,1.75707]
[1733566530983,0.05375922,3984.5,3984.0,0.0784378]
[1733566531200,2.31373626,3984.9,3984.2,1.75693]
[1733566531425,2.31373626,3984.9,3984.3,0.07843588]
[1733566531426,0.05361789,3984.4,3984.3,0.07843588]
[1733566531630,0.05361789,3984.8,3984.3,0.07843588]
[1733566531783,0.05183063,3984.4,3984.3,1.75688]
[1733566532123,0.405736,3984.9,3984.3,1.83531429]
[1733566532284,0.405736,3984.9,3984.4,0.07843429]
[1733566532490,0.08859042,3984.8,3984.5,0.07843429]
[1733566532712,0.08859042,3984.8,3984.6,0.07843429]
[1733566532913,0.08859042,3984.8,3984.3,1.75688]
[1733566533218,0.08508134,3984.7,3984.4,0.0784299]
[1733566533426,1.5117648,3985.0,3984.5,0.0784299]
[1733566533633,0.08508134,3984.9,3984.6,0.0784299]
[1733566533922,0.08508134,3984.9,3984.4,1.75684]
[1733566534221,0.08508134,3984.9,3984.5,0.07843075]
[1733566534421,0.08508134,3984.8,3984.6,0.07843075]
[1733566534627,0.59684614,3985.0,3984.4,1.75684]
[1733566534784,0.0822453,3984.9,3984.5,0.07843134]
[1733566534998,0.0822453,3984.9,3984.6,0.07843134]
[1733566535194,0.0822453,3984.9,3984.3,1.75688]
[1733566535400,0.0822453,3984.9,3984.4,0.07843099]
[1733566535602,0.0822453,3984.9,3984.5,0.07843099]
[1733566535814,0.07954695,3984.8,3984.6,0.07843099]
[1733566536023,1.22553838,3985.0,3984.3,1.75688]
[1733566536210,0.07954695,3984.9,3984.4,0.07843095]
[1733566536416,0.07954695,3984.9,3984.4,1.83526095]
[1733566536631,0.07954695,3984.9,3984.5,0.0784311]
[1733566537007,0.07954695,3984.9,3984.6,0.8314311]
[1733566537212,0.07954695,3984.9,3984.8,1.75667]
[1733566537412,1.22553838,3985.0,3984.9,2.50963]
[1733566537413,0.30508533,3985.0,3984.9,2.50963]
[1733566537748,0.30508533,3985.0,3984.9,2.5880611]
[1733566537910,0.30508533,3985.0,3984.9,3.67620523]
[1733566538112,0.7612,3986.1,3985.0,0.753]
[1733566538445,0.06877105,3986.0,3985.5,1.75635]
[1733566538744,0.06877105,3986.0,3985.6,0.0784311]
[1733566538946,0.06877105,3986.0,3985.7,0.0784311]
[1733566539106,0.06877105,3986.0,3985.8,0.0784311]
[1733566539307,0.06877105,3986.0,3985.9,0.0784311]
[1733566540018,1.84934413,3986.5,3985.9,0.0784311]
[1733566540217,1.24690311,3986.4,3986.0,0.0784311]
[1733566540415,0.38355592,3986.4,3985.8,0.753]
[1733566540640,0.38355592,3986.4,3985.9,0.07840294]
[1733566540917,0.38355592,3986.4,3986.0,0.07840294]
[1733566541146,0.38355592,3986.4,3985.7,1.75626]
[1733566541349,0.22329001,3986.3,3985.8,0.07840383]
[1733566541515,0.06915249,3986.2,3985.9,0.07840383]
[1733566541715,0.22329001,3986.3,3986.0,0.07840383]
[1733566541916,0.22329001,3986.3,3985.5,2.50936]
[1733566542111,0.06913679,3986.2,3985.6,0.07840376]
[1733566542333,0.31475698,3986.2,3985.8,1.75623]
[1733566542539,0.31475698,3986.2,3986.0,1.75613]
[1733566542725,0.06913679,3986.2,3986.1,1.83449802]
[1733566542926,0.06913679,3986.2,3986.1,2.65209802]
[1733566543209,1.22510654,3986.8,3986.5,1.75591]
[1733566543513,1.22510654,3986.8,3986.5,1.75588]
[1733566543819,1.22510654,3986.8,3986.6,1.75586]
[1733566544346,1.42789719,3986.8,3986.6,1.75586]
[1733566546558,1.22510654,3986.8,3986.6,1.75586]
[1733566547232,1.22510654,3986.8,3986.7,1.75583]
[1733566547422,1.22510654,3986.8,3986.7,2.57343]
[1733566549831,1.22510654,3986.8,3986.7,0.8176]
[1733566550041,1.22510654,3986.8,3986.5,1.75591]
[1733566550258,0.06763731,3986.7,3986.5,1.75591]
[1733566550755,1.22510654,3986.8,3986.5,1.75591]
[1733566550956,0.06763731,3986.6,3986.5,1.75591]
[1733566551160,1.22510654,3986.8,3986.5,1.75591]
[1733566551457,0.06763731,3986.7,3986.3,1.75599]
[1733566552058,0.06763731,3986.6,3986.4,1.75596]
[1733566552422,2.02790654,3986.8,3986.4,1.75596]
[1733566552757,0.06763731,3986.7,3986.4,1.75596]
[1733566553166,2.02790654,3986.8,3986.4,1.75596]
[1733566553463,2.02790654,3986.8,3986.2,1.75605]
[1733566553660,2.02790654,3986.8,3986.1,0.8176]
[1733566553661,0.06763731,3986.7,3986.1,0.8176]
[1733566554339,0.06763731,3986.7,3986.1,2.57367]
[1733566556369,0.06763731,3986.7,3985.9,1.75618]
[1733566556755,1.47415024,3986.7,3986.0,0.07839185]
[1733566556960,0.7781,3986.6,3985.6,1.75628]
[1733566557264,1.08814413,3986.4,3985.7,0.07839292]
[1733566557658,1.08814413,3986.4,3985.5,2.56236]
[1733566557977,0.3183688,3986.7,3984.8,0.39792391]
[1733566557978,1.08814413,3986.1,3985.6,0.07840088]
[1733566558283,0.7781,3986.0,3985.2,2.56245]
[1733566558482,0.8452137,3986.0,3985.3,0.0784054]
[1733566558640,0.8452137,3986.0,3985.4,0.0784054]
[1733566558971,0.8452137,3986.0,3985.5,0.0784054]
[1733566559177,0.8452137,3986.0,3985.2,2.818695]
[1733566559372,0.8452137,3986.0,3985.3,0.07840544]
[1733566561288,0.8452137,3986.0,3985.4,0.07840544]
[1733566561700,0.8452137,3986.0,3985.5,0.07840544]
[1733566561883,0.8452137,3986.0,3985.6,0.07840544]
[1733566562198,0.8452137,3986.0,3985.7,0.07840544]
[1733566562504,0.8452137,3986.0,3985.2,2.56249]
[1733566562660,0.8452137,3986.0,3985.3,0.33465455]
[1733566562859,0.8452137,3986.0,3985.4,0.07840555]
[1733566563061,0.8452137,3986.0,3985.5,0.07840555]
[1733566563261,0.8452137,3986.0,3985.6,0.07840555]
[1733566563464,0.8452137,3986.0,3985.7,0.07840555]
[1733566563802,0.8452137,3986.0,3985.3,0.256249]
[1733566563963,0.8452137,3986.0,3985.4,0.36027963]
[1733566564162,0.8452137,3986.0,3985.5,0.07840573]
[1733566564371,0.8452137,3986.0,3985.4,0.2818739]
[1733566564372,0.8452137,3986.0,3985.6,0.07840573]
[1733566564694,0.8452137,3986.0,3985.7,0.07840573]
[1733566564892,0.8452137,3986.0,3985.8,0.07840573]
[1733566565144,0.8452137,3986.0,3985.4,0.2818739]
[1733566565306,0.8452137,3986.0,3985.5,0.36283404]
[1733566565635,0.0671137,3986.0,3985.6,0.07840565]
[1733566565806,0.7781,3986.4,3985.7,0.07840565]
[1733566566009,0.0670901,3986.3,3985.8,0.88440565]
[1733566566214,0.0670901,3986.3,3985.9,0.07840565]
[1733566566525,0.7781,3986.7,3986.0,0.07840565]
[1733566566837,0.7781,3986.7,3986.1,0.07840565]
[1733566567040,0.06710583,3986.6,3986.2,0.07840565]
[1733566567250,0.06710583,3986.6,3986.3,0.07840565]
[1733566567548,0.06710583,3986.6,3986.4,0.07840565]
[1733566567841,0.06710583,3986.6,3985.6,1.75628]
[1733566568142,0.06710583,3986.6,3985.7,0.33462676]
[1733566568341,0.06710583,3986.6,3985.8,0.07839876]
[1733566568642,0.06710583,3986.6,3985.7,0.256228]
[1733566568643,0.06710583,3986.6,3985.9,0.07839909]
[1733566568798,0.06710583,3986.6,3986.0,0.07839909]
[1733566569000,0.06710583,3986.6,3986.1,0.07839921]
[1733566569209,0.06710583,3986.6,3986.2,0.07839921]
[1733566569210,0.7781,3986.5,3986.2,0.07839921]
[1733566569430,0.06723573,3986.4,3986.3,0.07839921]
[1733566569626,1.15537986,3986.4,3986.3,0.07839921]
[1733566569942,2.53412,3986.3,3985.2,2.56248]
[1733566570103,2.53412,3986.3,3985.3,0.07840387]
[1733566570305,1.08814413,3986.1,3985.4,0.07840387]
[1733566570646,0.7781,3985.8,3985.5,0.07840387]
[1733566570841,0.06711765,3985.7,3985.6,0.07840387]
[1733566571314,3.62248413,3985.8,3985.6,0.07840387]
[1733566571511,0.06700742,3985.7,3984.7,1.75671]
[1733566571698,0.06700742,3985.7,3984.8,0.33468721]
[1733566571903,1.86624413,3985.8,3984.9,0.07841621]
[1733566572100,1.86624413,3985.8,3984.8,2.012941]
[1733566572101,1.86624413,3985.8,3985.0,0.07841621]
[1733566572343,0.06700742,3985.7,3985.1,0.07841573]
[1733566572550,0.06700742,3985.7,3985.2,0.07841573]
[1733566572754,0.06700742,3985.7,3985.3,0.07841627]
[1733566572957,0.06700742,3985.7,3985.4,0.07841627]
[1733566573123,3.62247413,3985.8,3985.4,0.07841627]
[1733566573328,0.06700742,3985.6,3984.6,2.56273]
[1733566573536,3.62247413,3985.8,3984.7,0.07841654]
[1733566573738,3.62247413,3985.8,3984.6,2.56273]
[1733566573739,0.06700742,3985.5,3984.8,0.07841654]
[1733566573951,3.62247413,3985.8,3984.9,0.07841654]
[1733566574255,3.62247413,3985.8,3985.0,0.07841654]
[1733566574418,0.06700742,3985.7,3985.1,0.07841654]
[1733566574616,0.06700742,3985.7,3985.2,0.07841654]
[1733566574856,1.82331742,3985.7,3985.3,0.07841654]
[1733566575058,2.19227357,3985.7,3985.4,0.07841654]
[1733566575216,2.19227357,3985.7,3984.8,1.75667]
[1733566575217,0.06700742,3985.7,3984.8,1.75667]
[1733566575539,0.06700742,3985.7,3984.9,0.07841654]
[1733566575725,0.06700742,3985.7,3985.0,0.07841654]
[1733566575928,0.06700742,3985.7,3985.1,0.07841654]
[1733566576126,0.06700742,3985.7,3985.2,0.07841654]
[1733566576339,0.06700742,3985.7,3985.3,0.07841654]
[1733566576555,0.06700742,3985.7,3985.4,0.07841654]
[1733566576761,0.06700742,3985.7,3984.8,1.75667]
[1733566576958,2.53437,3985.8,3984.9,0.44349752]
[1733566577156,0.06700742,3985.6,3985.0,0.07841611]
[1733566577331,2.53437,3985.8,3985.1,0.07841611]
[1733566577528,0.06700742,3985.5,3985.2,0.07841611]
[1733566577758,1.75641,3985.4,3985.3,0.07841611]
[1733566578058,1.82341742,3985.4,3984.3,3.65052413]
[1733566578263,0.833,3985.3,3984.4,0.36505241]
[1733566578613,0.06700742,3985.2,3984.5,0.07842297]
[1733566578857,0.06700742,3985.2,3984.4,0.36505241]
[1733566578858,0.06700742,3985.2,3984.6,0.07842297]
[1733566579049,0.06700742,3985.2,3984.4,0.36505241]
[1733566579255,0.06700742,3985.2,3984.7,0.07842072]
[1733566579569,0.06700742,3985.2,3984.8,0.07842092]
[1733566579723,0.06700742,3985.2,3984.9,0.07842092]
[1733566579918,0.833,3985.3,3985.0,0.07842092]
[1733566580149,0.833,3985.3,3985.1,0.07842092]
[1733566580348,0.833,3985.3,3985.2,0.07842092]
[1733566582565,0.833,3985.3,3984.4,1.75684]
[1733566582750,0.833,3985.3,3984.5,0.36504841]
[1733566583066,0.833,3985.3,3984.6,0.07842123]
[1733566583272,0.833,3985.3,3984.7,0.07842123]
[1733566583493,0.833,3985.3,3984.8,0.07842123]
[1733566583672,0.833,3985.3,3984.9,0.07842123]
[1733566583850,0.833,3985.3,3985.0,0.07842123]
[1733566584051,0.833,3985.3,3985.1,0.07842123]
[1733566584280,0.833,3985.3,3984.5,2.12180841]
[1733566584281,0.833,3985.3,3985.2,0.07842123]
[1733566585590,1.091941,3985.3,3985.2,0.07842123]
[1733566585901,2.848391,3985.3,3985.2,0.07842123]
[1733566587094,1.091941,3985.3,3985.2,0.07842123]
[1733566588301,2.848391,3985.3,3985.2,0.07842123]
[1733566589486,0.755,3985.2,3984.1,1.75697]
[1733566589696,0.755,3985.1,3984.2,0.07842405]
[1733566589986,0.755,3985.1,3984.3,0.07842405]
[1733566590183,0.755,3985.1,3983.9,2.52387]
[1733566590184,1.75662,3985.0,3984.4,0.07842405]
[1733566590372,0.755,3985.1,3984.5,0.07842405]
[1733566590574,1.75667,3984.9,3984.6,0.07842405]
[1733566590874,1.75667,3984.9,3984.7,0.07842405]
[1733566591070,1.75667,3984.9,3984.8,0.07842405]
[1733566593822,1.75667,3984.9,3984.8,0.07843184]
[1733566594037,1.75667,3984.9,3983.9,2.52386]
[1733566594217,2.51154,3985.1,3984.0,0.33081656]
[1733566594419,0.06661369,3984.8,3984.1,0.07843056]
[1733566594601,2.04952715,3985.1,3984.3,0.7668]
[1733566594804,0.06661369,3984.7,3984.4,0.07843056]
[1733566595136,0.06652309,3984.6,3984.5,0.07843056]
[1733566595627,2.51154,3985.1,3984.5,0.07843056]
[1733566595814,0.06652309,3984.6,3984.3,0.7668]
[1733566596016,3.13280693,3985.1,3984.4,0.07843004]
[1733566596228,0.06652309,3984.5,3984.0,0.7674]
[1733566596396,2.51154,3985.1,3984.5,0.07843143]
[1733566596595,2.51154,3985.1,3984.1,0.07843143]
[1733566596596,0.86312294,3985.0,3984.1,0.07843143]
[1733566596825,0.86312294,3985.0,3984.2,0.07843143]
[1733566597034,2.51154,3985.1,3984.3,0.07843143]
[1733566597236,2.51154,3985.1,3984.0,2.52442]
[1733566597237,2.51154,3985.1,3984.4,0.07843143]
[1733566597438,2.51154,3985.1,3984.5,0.07843143]
[1733566597652,1.75664,3984.9,3984.6,0.07843143]
[1733566597801,1.75664,3984.9,3984.7,0.07843143]
[1733566598133,1.75664,3984.9,3984.0,0.7674]
[1733566598348,1.75664,3984.9,3984.1,0.07843195]
[1733566598636,1.75664,3984.9,3984.2,0.07843195]
[1733566598836,0.7644,3984.8,3984.3,0.07843195]
[1733566599046,0.7644,3984.8,3984.4,0.07843195]
[1733566599195,0.7644,3984.8,3984.5,0.07843195]
[1733566599392,0.7644,3984.8,3984.6,0.07843195]
[1733566599700,0.7644,3984.8,3984.7,0.07843195]
[1733566600515,2.04657885,3984.8,3984.7,0.07843195]
[1733566600716,1.18295788,3984.8,3984.7,0.07843195]
[1733566600904,2.0465634,3984.8,3984.7,0.07843195]
[1733566601110,2.04657363,3984.8,3984.7,0.07843195]
[1733566601317,2.04667603,3984.8,3984.7,0.07843195]
[1733566601797,2.04667603,3984.8,3983.9,1.75706]
[1733566602030,0.7644,3984.8,3984.0,0.07843488]
[1733566602239,0.7644,3984.8,3984.1,0.07843488]
[1733566602533,0.7644,3984.8,3984.2,0.07843488]
[1733566602791,0.7644,3984.8,3984.3,0.07843488]
[1733566602904,0.7644,3984.8,3984.4,0.07843488]
[1733566603102,0.86383472,3984.7,3983.9,1.75706]
[1733566603303,0.7644,3984.8,3984.5,0.07843477]
[1733566603536,1.62832274,3984.8,3984.6,0.07843477]
[1733566603713,0.86392274,3984.7,3983.9,1.75706]
[1733566603917,2.05996666,3984.8,3984.0,0.07843451]
[1733566604118,0.86401716,3984.7,3984.1,0.07843451]
[1733566604351,0.7644,3984.8,3984.2,0.07843451]
[1733566604519,1.6283967,3984.8,3984.3,0.07843451]
[1733566604713,1.6283967,3984.8,3983.9,1.75706]
[1733566604714,0.7644,3984.8,3984.4,0.07843451]
[1733566604918,1.62850733,3984.8,3984.5,0.07843451]
[1733566605214,1.62850733,3984.8,3983.9,1.75706]
[1733566605215,0.7644,3984.8,3984.6,0.07843451]
[1733566605441,0.7644,3984.8,3984.7,0.07843451]
[1733566605636,1.62848006,3984.8,3984.7,0.07843451]
[1733566606027,1.62848006,3984.8,3983.9,1.75706]
[1733566606223,0.7644,3984.8,3984.7,0.07843462]
[1733566606450,1.62846213,3984.8,3984.7,0.07843462]
[1733566606635,1.62846213,3984.8,3984.7,0.07843456]
[1733566607618,3.38513213,3984.8,3983.8,0.7674]
[1733566607849,0.86406213,3984.7,3983.9,0.07843732]
[1733566608064,0.86406213,3984.7,3984.0,0.07843732]
[1733566608360,2.62079213,3984.7,3984.1,0.07843732]
[1733566608525,1.75673,3984.7,3984.2,0.07843732]
[1733566608731,1.75673,3984.7,3984.3,0.07843732]
[1733566608954,1.75673,3984.7,3984.4,0.07843732]
[1733566609259,0.06616867,3984.6,3984.5,0.07843732]
[1733566609919,0.06616867,3984.6,3983.8,0.7674]
[1733566610320,0.06616867,3984.6,3983.9,0.07843702]
[1733566610526,3.10386619,3984.8,3984.0,0.07843702]
[1733566610824,0.86425598,3984.7,3984.1,0.07843702]
[1733566611023,0.06616867,3984.6,3984.2,0.07843702]
[1733566611224,0.06616867,3984.6,3984.3,0.07843702]
[1733566611424,3.56439185,3984.8,3984.4,0.07843702]
[1733566611665,1.68250961,3984.7,3984.5,0.07843702]
[1733566611865,0.81805632,3984.7,3984.6,0.07843702]
[1733566612026,1.68251504,3984.7,3984.6,0.07843702]
[1733566612533,2.97912304,3984.7,3984.6,0.07843702]
[1733566612734,1.68243231,3984.7,3984.6,0.07843702]
[1733566613262,4.0223112,3984.7,3984.6,0.07843702]
[1733566613563,4.0223112,3984.7,3984.6,0.07843535]
[1733566615770,4.02512332,3984.7,3984.6,0.07843535]
[1733566615974,4.02510966,3984.7,3984.6,0.07843535]
[1733566616478,4.02540282,3984.7,3984.6,0.07843535]
[1733566616633,2.2271117,3984.7,3984.6,0.07843535]
[1733566617533,2.22956252,3984.7,3984.6,0.07843535]
[1733566618046,0.06616867,3984.7,3984.6,0.07843535]
[1733566618251,2.16350508,3984.7,3984.6,0.07843535]
[1733566618444,2.22960285,3984.7,3984.6,0.07843535]
[1733566619646,3.79927615,3984.7,3984.6,0.07843535]
[1733566620046,4.58377615,3984.7,3984.6,0.07843535]
[1733566620347,5.53372555,3984.7,3984.6,0.07843368]
[1733566621277,3.96405225,3984.7,3984.6,0.07843368]
[1733566621596,5.53455489,3984.7,3984.6,0.07843368]
[1733566622082,3.96405225,3984.7,3984.6,0.07843368]
[1733566622284,9.54833601,3984.7,3984.6,0.07843368]
[1733566622490,7.82013022,3984.7,3984.6,0.07843368]
[1733566622701,7.44896804,3984.7,3984.6,0.07843368]
[1733566622862,7.44896804,3984.7,3983.8,0.8019]
[1733566623070,7.44896804,3984.7,3983.8,1.057809]
[1733566623071,1.04700085,3984.4,3983.8,1.057809]
[1733566623378,3.21050593,3984.3,3983.8,1.057809]
[1733566623584,0.86540203,3984.2,3983.9,0.07843717]
[1733566623767,1.11309862,3984.3,3984.0,0.07843717]
[1733566624090,2.23065192,3984.2,3984.1,0.07843717]
[1733566625810,2.23060979,3984.2,3984.1,0.07843717]
[1733566626492,0.93190258,3984.2,3984.1,0.07843717]
[1733566626714,0.06609777,3984.2,3984.1,0.07843717]
[1733566626892,0.8658286,3984.2,3984.1,0.07843717]
[1733566627093,0.93189487,3984.2,3984.1,0.07843717]
[1733566627292,2.23072207,3984.2,3984.1,0.07843717]
[1733566629432,2.23072207,3984.2,3983.8,2.55901]